[Event "Titled Tuesday Blitz March 14 Early 2023"]
[White "Pakleza, Zbigniew"]
[Black "Riff, Vincent"]
[WhiteFideId "1119290"]
[BlackFideId "617776"]
[WhiteElo "2410"]
[BlackElo "2369"]
[Result "1-0"]
[Round "03"]
[TimeControl "180+2"]
[Date "2023.03.14"]
[WhiteClock "0:00:04"]
[BlackClock "0:01:12"]

1. d4 {[%clk 0:03:00]}  d5 {[%clk 0:02:58]} 2. Bf4 {[%clk 0:03:00]}  c5 {[%clk 0:02:57]} 3. e3 {[%clk 0:02:59]}  Nc6 {[%clk 0:02:57]} 4. c3 {[%clk 0:02:59]}  Qb6 {[%clk 0:02:57]} 5. Qb3 {[%clk 0:02:57]}  c4 {[%clk 0:02:58]} 6. Qc2 {[%clk 0:02:58]}  e5 {[%clk 0:02:58]} 7. dxe5 {[%clk 0:02:49]}  Bf5 {[%clk 0:02:58]} 8. Qc1 {[%clk 0:02:49]}  g5 {[%clk 0:02:57]} 9. Bg3 {[%clk 0:02:48]}  Bg7 {[%clk 0:02:54]} 10. Nf3 {[%clk 0:02:46]}  h6 {[%clk 0:02:46]} 11. Nd4 {[%clk 0:02:28]}  Bg6 {[%clk 0:02:38]} 12. f4 {[%clk 0:02:24]}  Nge7 {[%clk 0:02:37]} 13. Nd2 {[%clk 0:02:18]}  O-O-O {[%clk 0:02:28]} 14. b3 {[%clk 0:02:14]}  gxf4 {[%clk 0:02:24]} 15. exf4 {[%clk 0:01:49]}  Nxd4 {[%clk 0:02:22]} 16. cxd4 {[%clk 0:01:50]}  Qxd4 {[%clk 0:02:20]} 17. bxc4 {[%clk 0:01:39]}  Kb8 {[%clk 0:02:20]} 18. Be2 {[%clk 0:01:22]}  dxc4 {[%clk 0:02:15]} 19. Nxc4 {[%clk 0:01:17]}  Nd5 {[%clk 0:02:09]} 20. Bf2 {[%clk 0:00:47]}  Qc3+ {[%clk 0:02:00]} 21. Qxc3 {[%clk 0:00:44]}  Nxc3 {[%clk 0:02:01]} 22. Rc1 {[%clk 0:00:30]}  Nxe2 {[%clk 0:01:57]} 23. Kxe2 {[%clk 0:00:31]}  Rd5 {[%clk 0:01:49]} 24. g4 {[%clk 0:00:20]}  h5 {[%clk 0:01:44]} 25. f5 {[%clk 0:00:16]}  Bh7 {[%clk 0:01:43]} 26. h3 {[%clk 0:00:16]}  Bxe5 {[%clk 0:01:40]} 27. Nxe5 {[%clk 0:00:16]}  Rxe5+ {[%clk 0:01:40]} 28. Kf3 {[%clk 0:00:17]}  Ka8 {[%clk 0:01:41]} 29. Rhe1 {[%clk 0:00:14]}  Rxe1 {[%clk 0:01:37]} 30. Rxe1 {[%clk 0:00:14]}  hxg4+ {[%clk 0:01:38]} 31. hxg4 {[%clk 0:00:14]}  Rc8 {[%clk 0:01:37]} 32. Re7 {[%clk 0:00:13]}  Bg8 {[%clk 0:01:37]} 33. Bd4 {[%clk 0:00:12]}  a5 {[%clk 0:01:34]} 34. Kf4 {[%clk 0:00:12]}  a4 {[%clk 0:01:34]} 35. g5 {[%clk 0:00:11]}  b5 {[%clk 0:01:27]} 36. a3 {[%clk 0:00:07]}  Rd8 {[%clk 0:01:20]} 37. Ke5 {[%clk 0:00:05]}  Kb8 {[%clk 0:01:13]} 38. Bb6 {[%clk 0:00:04]}  Rd1 {[%clk 0:01:12]} 39. Re8+ {[%clk 0:00:04]}  Kb7 {[%clk 0:01:12]} 40. Rxg8 {[%clk 0:00:04]}  Kxb6 {[%clk 0:01:12]} 41. Kf6 {[%clk 0:00:05]}  b4 {[%clk 0:01:12]} 42. Rb8+ {[%clk 0:00:04]}  Kc5 {[%clk 0:01:11]} 43. Rxb4 {[%clk 0:00:04]}  Rd5 {[%clk 0:01:11]} 44. Rxa4 {[%clk 0:00:04]}  Rd6+ {[%clk 0:01:12]} 45. Kxf7 {[%clk 0:00:04]}  Ra6 {[%clk 0:01:12]} 46. Rxa6 {[%clk 0:00:04]} 1-0


[Site "https://www.chess.com"]

[Event "Titled Tuesday Blitz March 14 Early 2023"]
[White "Lobanov, Sergei"]
[Black "Escano Dionicio, Porfirio Simeon"]
[WhiteFideId "24183750"]
[BlackFideId "6406181"]
[WhiteElo "2489"]
[BlackElo "1968"]
[Result "1-0"]
[Round "03"]
[TimeControl "180+2"]
[Date "2023.03.14"]
[WhiteClock "0:00:39"]
[BlackClock "0:00:16"]

1. d4 {[%clk 0:03:00]}  Nf6 {[%clk 0:02:59]} 2. c4 {[%clk 0:03:00]}  g6 {[%clk 0:02:58]} 3. Nc3 {[%clk 0:03:01]}  Bg7 {[%clk 0:02:58]} 4. e4 {[%clk 0:03:01]}  d6 {[%clk 0:02:59]} 5. h3 {[%clk 0:03:01]}  O-O {[%clk 0:02:55]} 6. Be3 {[%clk 0:03:01]}  c5 {[%clk 0:02:54]} 7. Nf3 {[%clk 0:02:58]}  cxd4 {[%clk 0:02:50]} 8. Nxd4 {[%clk 0:02:59]}  Nc6 {[%clk 0:02:50]} 9. Be2 {[%clk 0:02:59]}  Bd7 {[%clk 0:02:47]} 10. O-O {[%clk 0:02:56]}  Nxd4 {[%clk 0:02:42]} 11. Bxd4 {[%clk 0:02:56]}  Bc6 {[%clk 0:02:42]} 12. Qd3 {[%clk 0:02:51]}  a5 {[%clk 0:02:38]} 13. Nd5 {[%clk 0:02:47]}  Bxd5 {[%clk 0:02:24]} 14. exd5 {[%clk 0:02:48]}  a4 {[%clk 0:02:21]} 15. Rfe1 {[%clk 0:02:44]}  Re8 {[%clk 0:02:18]} 16. Bf3 {[%clk 0:02:25]}  Nd7 {[%clk 0:02:14]} 17. Bxg7 {[%clk 0:02:22]}  Kxg7 {[%clk 0:02:14]} 18. Qd4+ {[%clk 0:02:22]}  Kg8 {[%clk 0:02:14]} 19. Re3 {[%clk 0:02:18]}  Qb6 {[%clk 0:02:06]} 20. Qc3 {[%clk 0:02:17]}  Qc7 {[%clk 0:01:49]} 21. Rae1 {[%clk 0:02:14]}  Ne5 {[%clk 0:01:12]} 22. Be2 {[%clk 0:02:13]}  Rac8 {[%clk 0:01:12]} 23. Rc1 {[%clk 0:02:04]}  Nd7 {[%clk 0:01:08]} 24. Bf1 {[%clk 0:02:02]}  Qc5 {[%clk 0:01:05]} 25. Rce1 {[%clk 0:01:55]}  Ne5 {[%clk 0:01:02]} 26. Re4 {[%clk 0:01:23]}  a3 {[%clk 0:00:46]} 27. b4 {[%clk 0:01:20]}  Qxd5 {[%clk 0:00:45]} 28. f4 {[%clk 0:01:11]}  Nd7 {[%clk 0:00:34]} 29. Rxe7 {[%clk 0:01:07]}  Rxe7 {[%clk 0:00:33]} 30. Rxe7 {[%clk 0:01:08]}  Qc6 {[%clk 0:00:25]} 31. Kh2 {[%clk 0:00:54]}  b5 {[%clk 0:00:19]} 32. Be2 {[%clk 0:00:39]}  bxc4 {[%clk 0:00:18]} 33. Bg4 {[%clk 0:00:39]}  Rd8 {[%clk 0:00:16]} 34. Bxd7 {[%clk 0:00:39]} 1-0


[Site "https://www.chess.com"]

[Event "Titled Tuesday Blitz March 14 Early 2023"]
[White "EREBUNI91"]
[Black "Janaszak, Dawid"]
[BlackFideId "1119206"]
[WhiteElo "2753"]
[BlackElo "2220"]
[Result "1-0"]
[Round "03"]
[TimeControl "180+2"]
[Date "2023.03.14"]
[WhiteClock "0:01:36"]
[BlackClock "0:00:07"]

1. e4 {[%clk 0:03:00]}  c5 {[%clk 0:02:59]} 2. Nf3 {[%clk 0:03:00]}  Nc6 {[%clk 0:02:56]} 3. Bb5 {[%clk 0:03:00]}  g6 {[%clk 0:02:54]} 4. Bxc6 {[%clk 0:03:00]}  bxc6 {[%clk 0:02:53]} 5. O-O {[%clk 0:02:59]}  Bg7 {[%clk 0:02:53]} 6. Re1 {[%clk 0:02:47]}  e5 {[%clk 0:02:52]} 7. c3 {[%clk 0:02:40]}  d6 {[%clk 0:02:49]} 8. d4 {[%clk 0:02:40]}  cxd4 {[%clk 0:02:49]} 9. cxd4 {[%clk 0:02:41]}  exd4 {[%clk 0:02:50]} 10. Nxd4 {[%clk 0:02:38]}  Ne7 {[%clk 0:02:49]} 11. Nc3 {[%clk 0:02:38]}  O-O {[%clk 0:02:48]} 12. Be3 {[%clk 0:02:39]}  Rb8 {[%clk 0:02:45]} 13. Qd2 {[%clk 0:02:39]}  Bb7 {[%clk 0:02:14]} 14. Rad1 {[%clk 0:02:38]}  d5 {[%clk 0:02:09]} 15. Bh6 {[%clk 0:02:30]}  c5 {[%clk 0:02:01]} 16. Bxg7 {[%clk 0:02:15]}  Kxg7 {[%clk 0:02:01]} 17. Nb3 {[%clk 0:02:15]}  d4 {[%clk 0:01:58]} 18. Nxc5 {[%clk 0:02:15]}  Nc6 {[%clk 0:01:48]} 19. Nd5 {[%clk 0:02:13]}  Bc8 {[%clk 0:01:42]} 20. Nb3 {[%clk 0:01:55]}  Bd7 {[%clk 0:00:56]} 21. Nxd4 {[%clk 0:01:54]}  Ne5 {[%clk 0:00:55]} 22. f4 {[%clk 0:01:52]}  Ng4 {[%clk 0:00:50]} 23. Qc3 {[%clk 0:01:50]}  Kg8 {[%clk 0:00:47]} 24. h3 {[%clk 0:01:49]}  Rc8 {[%clk 0:00:31]} 25. Qg3 {[%clk 0:01:47]}  Nf6 {[%clk 0:00:30]} 26. Nxf6+ {[%clk 0:01:44]}  Qxf6 {[%clk 0:00:30]} 27. e5 {[%clk 0:01:45]}  Qb6 {[%clk 0:00:30]} 28. Kh2 {[%clk 0:01:44]}  Qxb2 {[%clk 0:00:28]} 29. Nf3 {[%clk 0:01:42]}  Ba4 {[%clk 0:00:26]} 30. Rd2 {[%clk 0:01:41]}  Qb4 {[%clk 0:00:24]} 31. Qh4 {[%clk 0:01:41]}  h5 {[%clk 0:00:20]} 32. e6 {[%clk 0:01:39]}  f6 {[%clk 0:00:12]} 33. e7 {[%clk 0:01:38]}  Rfe8 {[%clk 0:00:12]} 34. Qxf6 {[%clk 0:01:37]}  Kh7 {[%clk 0:00:08]} 35. Qf7+ {[%clk 0:01:37]}  Kh6 {[%clk 0:00:07]} 36. Ng5 {[%clk 0:01:36]} 1-0


[Site "https://www.chess.com"]

[Event "Titled Tuesday Blitz March 14 Early 2023"]
[White "Cherniaiev, Tykhon"]
[Black "Wartiovaara, Oliver"]
[WhiteFideId "14182360"]
[BlackFideId "513024"]
[WhiteElo "2450"]
[BlackElo "2214"]
[Result "1-0"]
[Round "03"]
[TimeControl "180+2"]
[Date "2023.03.14"]
[WhiteClock "0:01:37"]
[BlackClock "0:00:20"]

1. Nf3 {[%clk 0:02:54]}  d5 {[%clk 0:02:58]} 2. d4 {[%clk 0:02:52]}  Bf5 {[%clk 0:02:48]} 3. Bf4 {[%clk 0:02:47]}  Nf6 {[%clk 0:02:47]} 4. e3 {[%clk 0:02:46]}  e6 {[%clk 0:02:47]} 5. Nbd2 {[%clk 0:02:44]}  Be7 {[%clk 0:02:42]} 6. c4 {[%clk 0:02:44]}  c6 {[%clk 0:02:34]} 7. Be2 {[%clk 0:02:40]}  O-O {[%clk 0:02:34]} 8. O-O {[%clk 0:02:39]}  Nbd7 {[%clk 0:02:28]} 9. Rc1 {[%clk 0:02:38]}  h6 {[%clk 0:02:28]} 10. h3 {[%clk 0:02:37]}  Bh7 {[%clk 0:02:26]} 11. Bh2 {[%clk 0:02:36]}  Rc8 {[%clk 0:02:14]} 12. Qb3 {[%clk 0:02:25]}  Qb6 {[%clk 0:02:12]} 13. c5 {[%clk 0:02:23]}  Qxb3 {[%clk 0:02:12]} 14. axb3 {[%clk 0:02:24]}  Rfe8 {[%clk 0:02:06]} 15. b4 {[%clk 0:02:23]}  a6 {[%clk 0:02:06]} 16. Nb3 {[%clk 0:02:23]}  Bd8 {[%clk 0:02:01]} 17. Ra1 {[%clk 0:02:12]}  Bc2 {[%clk 0:01:58]} 18. Na5 {[%clk 0:02:11]}  Bxa5 {[%clk 0:01:57]} 19. bxa5 {[%clk 0:02:11]}  Be4 {[%clk 0:01:51]} 20. Ra3 {[%clk 0:02:10]}  Bxf3 {[%clk 0:01:49]} 21. Bxf3 {[%clk 0:02:06]}  e5 {[%clk 0:01:50]} 22. Rb3 {[%clk 0:02:04]}  Rc7 {[%clk 0:01:42]} 23. Rd1 {[%clk 0:01:59]}  g5 {[%clk 0:01:16]} 24. Rb4 {[%clk 0:01:57]}  Kg7 {[%clk 0:01:14]} 25. Rd3 {[%clk 0:01:49]}  Ng8 {[%clk 0:00:30]} 26. Rdb3 {[%clk 0:01:37]}  f6 {[%clk 0:00:20]} 27. Rxb7 {[%clk 0:01:36]}  Rxb7 {[%clk 0:00:20]} 28. Rxb7 {[%clk 0:01:37]} 1-0


[Site "https://www.chess.com"]

[Event "Titled Tuesday Blitz March 14 Early 2023"]
[White "Baghdasaryan, Vahe"]
[Black "Atakhan, Abtin"]
[WhiteFideId "13303139"]
[BlackFideId "22502203"]
[WhiteElo "2216"]
[BlackElo "2008"]
[Result "0-1"]
[Round "03"]
[TimeControl "180+2"]
[Date "2023.03.14"]
[WhiteClock "0:00:12"]
[BlackClock "0:01:18"]

1. e4 {[%clk 0:02:57]}  c5 {[%clk 0:02:58]} 2. Nf3 {[%clk 0:02:56]}  d6 {[%clk 0:02:59]} 3. d4 {[%clk 0:02:56]}  cxd4 {[%clk 0:03:00]} 4. Nxd4 {[%clk 0:02:56]}  Nf6 {[%clk 0:03:00]} 5. Nc3 {[%clk 0:02:55]}  a6 {[%clk 0:03:01]} 6. Bg5 {[%clk 0:02:53]}  e6 {[%clk 0:03:01]} 7. f4 {[%clk 0:02:52]}  h6 {[%clk 0:03:01]} 8. Bh4 {[%clk 0:02:38]}  Qb6 {[%clk 0:03:01]} 9. a3 {[%clk 0:02:36]}  Nc6 {[%clk 0:03:02]} 10. Bf2 {[%clk 0:02:35]}  Qc7 {[%clk 0:03:01]} 11. Qf3 {[%clk 0:02:12]}  Nxd4 {[%clk 0:02:57]} 12. Bxd4 {[%clk 0:02:13]}  e5 {[%clk 0:02:58]} 13. Be3 {[%clk 0:02:11]}  Bg4 {[%clk 0:02:51]} 14. Qg3 {[%clk 0:02:09]}  Be6 {[%clk 0:02:44]} 15. Bd3 {[%clk 0:01:48]}  Nh5 {[%clk 0:02:40]} 16. Qf3 {[%clk 0:01:48]}  Nxf4 {[%clk 0:02:40]} 17. Bxf4 {[%clk 0:01:48]}  exf4 {[%clk 0:02:41]} 18. O-O-O {[%clk 0:01:23]}  Be7 {[%clk 0:02:41]} 19. Nd5 {[%clk 0:01:20]}  Bxd5 {[%clk 0:02:38]} 20. exd5 {[%clk 0:01:21]}  O-O-O {[%clk 0:02:29]} 21. Kb1 {[%clk 0:01:18]}  Bf6 {[%clk 0:02:20]} 22. Qxf4 {[%clk 0:01:12]}  Qb6 {[%clk 0:02:19]} 23. b4 {[%clk 0:01:05]}  Kb8 {[%clk 0:02:16]} 24. Bf5 {[%clk 0:01:02]}  Be5 {[%clk 0:02:08]} 25. Qc4 {[%clk 0:00:56]}  g6 {[%clk 0:02:07]} 26. Bh3 {[%clk 0:00:52]}  f5 {[%clk 0:02:08]} 27. Rd3 {[%clk 0:00:51]}  Rc8 {[%clk 0:02:08]} 28. Qb3 {[%clk 0:00:51]}  Rc7 {[%clk 0:01:59]} 29. c4 {[%clk 0:00:39]}  Rhc8 {[%clk 0:01:52]} 30. Rc1 {[%clk 0:00:36]}  Qb5 {[%clk 0:01:41]} 31. Rdc3 {[%clk 0:00:34]}  Qd7 {[%clk 0:01:33]} 32. Rd3 {[%clk 0:00:30]}  Bh8 {[%clk 0:01:26]} 33. g4 {[%clk 0:00:24]}  fxg4 {[%clk 0:01:25]} 34. Bg2 {[%clk 0:00:23]}  Qg7 {[%clk 0:01:24]} 35. Rdc3 {[%clk 0:00:16]}  Qd4 {[%clk 0:01:18]} 36. Rd1 {[%clk 0:00:12]}  Qxc3 {[%clk 0:01:18]} 0-1


[Site "https://www.chess.com"]

[Event "Titled Tuesday Blitz March 14 Early 2023"]
[White "Liyanage, Ranindu Dilshan"]
[Black "Gajwa Ankit"]
[WhiteFideId "9915834"]
[BlackFideId "5077834"]
[WhiteElo "2199"]
[BlackElo "2145"]
[Result "1-0"]
[Round "03"]
[TimeControl "180+2"]
[Date "2023.03.14"]
[WhiteClock "0:00:19"]
[BlackClock "0:00:01"]

1. e4 {[%clk 0:03:00]}  e5 {[%clk 0:02:57]} 2. Nf3 {[%clk 0:02:59]}  Nc6 {[%clk 0:02:55]} 3. Bc4 {[%clk 0:02:59]}  Nf6 {[%clk 0:02:55]} 4. d3 {[%clk 0:02:59]}  Be7 {[%clk 0:02:54]} 5. Nc3 {[%clk 0:02:58]}  O-O {[%clk 0:02:55]} 6. a4 {[%clk 0:02:58]}  d6 {[%clk 0:02:55]} 7. h3 {[%clk 0:02:58]}  Be6 {[%clk 0:02:53]} 8. Nd5 {[%clk 0:02:56]}  Na5 {[%clk 0:02:51]} 9. Ba2 {[%clk 0:02:52]}  c5 {[%clk 0:02:50]} 10. O-O {[%clk 0:02:46]}  Nc6 {[%clk 0:02:49]} 11. c3 {[%clk 0:02:45]}  h6 {[%clk 0:02:35]} 12. Be3 {[%clk 0:02:42]}  Nh7 {[%clk 0:02:34]} 13. Qd2 {[%clk 0:02:35]}  Qd7 {[%clk 0:02:28]} 14. b4 {[%clk 0:02:16]}  cxb4 {[%clk 0:02:27]} 15. cxb4 {[%clk 0:02:17]}  Bd8 {[%clk 0:02:05]} 16. d4 {[%clk 0:02:10]}  f5 {[%clk 0:01:50]} 17. exf5 {[%clk 0:01:58]}  Rxf5 {[%clk 0:01:48]} 18. dxe5 {[%clk 0:01:47]}  Rxf3 {[%clk 0:01:46]} 19. gxf3 {[%clk 0:01:33]}  Nxe5 {[%clk 0:01:45]} 20. Qe2 {[%clk 0:01:33]}  Qf7 {[%clk 0:01:42]} 21. f4 {[%clk 0:01:27]}  Bxd5 {[%clk 0:01:29]} 22. Bxd5 {[%clk 0:01:27]}  Qxd5 {[%clk 0:01:29]} 23. fxe5 {[%clk 0:01:27]}  Qxe5 {[%clk 0:01:29]} 24. Rad1 {[%clk 0:01:22]}  Bb6 {[%clk 0:01:08]} 25. Qc4+ {[%clk 0:01:18]}  Kh8 {[%clk 0:01:07]} 26. Rd5 {[%clk 0:01:17]}  Qe6 {[%clk 0:01:03]} 27. Bxb6 {[%clk 0:01:06]}  axb6 {[%clk 0:01:00]} 28. Qd3 {[%clk 0:01:06]}  Ng5 {[%clk 0:00:36]} 29. Rxd6 {[%clk 0:01:00]}  Nxh3+ {[%clk 0:00:28]} 30. Kh2 {[%clk 0:00:59]}  Nf4 {[%clk 0:00:17]} 31. Rxe6 {[%clk 0:00:54]}  Nxd3 {[%clk 0:00:17]} 32. Rxb6 {[%clk 0:00:51]}  Rxa4 {[%clk 0:00:17]} 33. b5 {[%clk 0:00:52]}  Nc5 {[%clk 0:00:13]} 34. Rc1 {[%clk 0:00:50]}  Nd3 {[%clk 0:00:11]} 35. Rc8+ {[%clk 0:00:49]}  Kh7 {[%clk 0:00:11]} 36. Rxb7 {[%clk 0:00:49]}  Nxf2 {[%clk 0:00:12]} 37. b6 {[%clk 0:00:34]}  Ng4+ {[%clk 0:00:10]} 38. Kg3 {[%clk 0:00:32]}  Ne3 {[%clk 0:00:08]} 39. Rf7 {[%clk 0:00:25]}  Ra3 {[%clk 0:00:03]} 40. b7 {[%clk 0:00:21]}  Nf5+ {[%clk 0:00:04]} 41. Kg2 {[%clk 0:00:20]}  Nd6 {[%clk 0:00:01]} 42. b8=Q {[%clk 0:00:18]}  Nxf7 {[%clk 0:00:01]} 43. Qb1+ {[%clk 0:00:18]}  g6 {[%clk 0:00:01]} 44. Rc7 {[%clk 0:00:19]} 1-0


[Site "https://www.chess.com"]

[Event "Titled Tuesday Blitz March 14 Early 2023"]
[White "Staudenhocker43"]
[Black "Maatman, Nick"]
[BlackFideId "1040391"]
[WhiteElo "2422"]
[BlackElo "2691"]
[Result "0-1"]
[Round "03"]
[TimeControl "180+2"]
[Date "2023.03.14"]
[WhiteClock "0:00:16"]
[BlackClock "0:00:08"]

1. e3 {[%clk 0:03:00]}  Nf6 {[%clk 0:02:58]} 2. Nf3 {[%clk 0:02:59]}  g6 {[%clk 0:02:58]} 3. b4 {[%clk 0:02:57]}  Bg7 {[%clk 0:02:59]} 4. Bb2 {[%clk 0:02:58]}  O-O {[%clk 0:02:59]} 5. c4 {[%clk 0:02:58]}  c6 {[%clk 0:02:57]} 6. Be2 {[%clk 0:02:57]}  d5 {[%clk 0:02:58]} 7. O-O {[%clk 0:02:57]}  Nbd7 {[%clk 0:02:58]} 8. d4 {[%clk 0:02:56]}  dxc4 {[%clk 0:02:57]} 9. Bxc4 {[%clk 0:02:55]}  a5 {[%clk 0:02:58]} 10. a3 {[%clk 0:02:54]}  Nb6 {[%clk 0:02:57]} 11. Be2 {[%clk 0:02:50]}  Be6 {[%clk 0:02:53]} 12. Nbd2 {[%clk 0:02:47]}  axb4 {[%clk 0:02:26]} 13. axb4 {[%clk 0:02:46]}  Qd6 {[%clk 0:02:20]} 14. Ba3 {[%clk 0:02:02]}  Ra7 {[%clk 0:02:03]} 15. Qc1 {[%clk 0:01:53]}  Rfa8 {[%clk 0:02:02]} 16. Ne5 {[%clk 0:01:52]}  Qb8 {[%clk 0:01:14]} 17. Bb2 {[%clk 0:01:45]}  Rxa1 {[%clk 0:01:08]} 18. Bxa1 {[%clk 0:01:46]}  Ra2 {[%clk 0:01:07]} 19. b5 {[%clk 0:01:34]}  cxb5 {[%clk 0:00:55]} 20. Bxb5 {[%clk 0:01:35]}  Nfd5 {[%clk 0:00:48]} 21. Ndc4 {[%clk 0:01:32]}  Nxc4 {[%clk 0:00:45]} 22. Bxc4 {[%clk 0:01:31]}  Ra5 {[%clk 0:00:40]} 23. e4 {[%clk 0:01:26]}  Bxe5 {[%clk 0:00:31]} 24. dxe5 {[%clk 0:01:16]}  Nf4 {[%clk 0:00:26]} 25. Qxf4 {[%clk 0:01:13]}  Bxc4 {[%clk 0:00:26]} 26. Re1 {[%clk 0:01:13]}  Be6 {[%clk 0:00:23]} 27. Bc3 {[%clk 0:01:07]}  Ra4 {[%clk 0:00:21]} 28. h4 {[%clk 0:01:04]}  h5 {[%clk 0:00:20]} 29. Qg5 {[%clk 0:01:00]}  Qc7 {[%clk 0:00:19]} 30. Re3 {[%clk 0:01:00]}  b5 {[%clk 0:00:18]} 31. f4 {[%clk 0:00:50]}  b4 {[%clk 0:00:16]} 32. Be1 {[%clk 0:00:49]}  Bc8 {[%clk 0:00:13]} 33. e6 {[%clk 0:00:46]}  Bxe6 {[%clk 0:00:12]} 34. f5 {[%clk 0:00:46]}  Ra5 {[%clk 0:00:11]} 35. Bxb4 {[%clk 0:00:41]}  Qc1+ {[%clk 0:00:09]} 36. Kh2 {[%clk 0:00:39]}  Rb5 {[%clk 0:00:09]} 37. Qxe7 {[%clk 0:00:35]}  Qxe3 {[%clk 0:00:07]} 38. fxe6 {[%clk 0:00:17]}  Qf4+ {[%clk 0:00:07]} 39. Kh3 {[%clk 0:00:17]}  Qg4+ {[%clk 0:00:07]} 40. Kh2 {[%clk 0:00:17]}  Qf4+ {[%clk 0:00:08]} 41. Kh3 {[%clk 0:00:17]}  Qg4+ {[%clk 0:00:08]} 42. Kh2 {[%clk 0:00:18]}  Qxe6 {[%clk 0:00:08]} 43. Qf8+ {[%clk 0:00:17]}  Kh7 {[%clk 0:00:08]} 44. Bd2 {[%clk 0:00:17]}  Re5 {[%clk 0:00:07]} 45. Bg5 {[%clk 0:00:17]}  Rxe4 {[%clk 0:00:06]} 46. Qh6+ {[%clk 0:00:16]}  Kg8 {[%clk 0:00:06]} 47. Kg3 {[%clk 0:00:15]}  Qe5+ {[%clk 0:00:07]} 48. Kf3 {[%clk 0:00:16]}  Qf5+ {[%clk 0:00:06]} 49. Kg3 {[%clk 0:00:16]}  Rg4+ {[%clk 0:00:07]} 50. Kh2 {[%clk 0:00:16]}  Qe5+ {[%clk 0:00:08]} 51. Kh1 {[%clk 0:00:16]}  Qe2 {[%clk 0:00:08]} 52. Bf6 {[%clk 0:00:16]}  Qxg2# {[%clk 0:00:08]} 0-1


[Site "https://www.chess.com"]

[Event "Titled Tuesday Blitz March 14 Early 2023"]
[White "Leve, Nitai"]
[Black "Matinian, Nikita"]
[WhiteFideId "2006898"]
[BlackFideId "24129100"]
[WhiteElo "2144"]
[BlackElo "2422"]
[Result "0-1"]
[Round "03"]
[TimeControl "180+2"]
[Date "2023.03.14"]
[WhiteClock "0:00:01"]
[BlackClock "0:00:39"]

1. e4 {[%clk 0:02:59]}  d6 {[%clk 0:03:00]} 2. d4 {[%clk 0:02:59]}  g6 {[%clk 0:03:01]} 3. Nc3 {[%clk 0:02:56]}  Bg7 {[%clk 0:03:01]} 4. f4 {[%clk 0:02:51]}  Nc6 {[%clk 0:03:00]} 5. d5 {[%clk 0:02:43]}  Nd4 {[%clk 0:02:59]} 6. Be3 {[%clk 0:02:38]}  c5 {[%clk 0:02:59]} 7. h3 {[%clk 0:02:22]}  Nf6 {[%clk 0:02:48]} 8. Bxd4 {[%clk 0:02:12]}  cxd4 {[%clk 0:02:48]} 9. Qxd4 {[%clk 0:02:11]}  O-O {[%clk 0:02:49]} 10. Qd3 {[%clk 0:02:08]}  Qb6 {[%clk 0:02:43]} 11. Rb1 {[%clk 0:01:48]}  Bd7 {[%clk 0:02:42]} 12. Nf3 {[%clk 0:01:45]}  Rac8 {[%clk 0:02:42]} 13. Be2 {[%clk 0:01:31]}  Rxc3 {[%clk 0:02:38]} 14. Qxc3 {[%clk 0:01:32]}  Nxe4 {[%clk 0:02:37]} 15. Qb3 {[%clk 0:01:12]}  Qf2+ {[%clk 0:02:35]} 16. Kd1 {[%clk 0:01:12]}  Ng3 {[%clk 0:02:08]} 17. Re1 {[%clk 0:01:10]}  Qxg2 {[%clk 0:02:06]} 18. Ng5 {[%clk 0:00:59]}  Nxe2 {[%clk 0:01:48]} 19. Rxe2 {[%clk 0:01:00]}  Qf1+ {[%clk 0:01:48]} 20. Re1 {[%clk 0:01:00]}  Qxf4 {[%clk 0:01:47]} 21. Qe3 {[%clk 0:00:59]}  Qf5 {[%clk 0:01:29]} 22. h4 {[%clk 0:00:20]}  Rc8 {[%clk 0:01:21]} 23. Qe4 {[%clk 0:00:16]}  Qf2 {[%clk 0:01:11]} 24. Re2 {[%clk 0:00:08]}  Qg1+ {[%clk 0:01:04]} 25. Re1 {[%clk 0:00:08]}  Bg4+ {[%clk 0:01:01]} 26. Kd2 {[%clk 0:00:07]}  Qf2+ {[%clk 0:01:00]} 27. Re2 {[%clk 0:00:04]}  Bxe2 {[%clk 0:00:58]} 28. Qxe7 {[%clk 0:00:03]}  Bg4+ {[%clk 0:00:52]} 29. Kd3 {[%clk 0:00:02]}  Bf5+ {[%clk 0:00:51]} 30. Ne4 {[%clk 0:00:01]}  Qxc2+ {[%clk 0:00:46]} 31. Ke3 {[%clk 0:00:01]}  Qxb1 {[%clk 0:00:42]} 32. Nxd6 {[%clk 0:00:02]}  Qe1+ {[%clk 0:00:40]} 33. Kf4 {[%clk 0:00:02]}  Bh6+ {[%clk 0:00:39]} 34. Kf3 {[%clk 0:00:01]}  Qxe7 {[%clk 0:00:39]} 0-1


[Site "https://www.chess.com"]

[Event "Titled Tuesday Blitz March 14 Early 2023"]
[White "Kraus, Tomas"]
[Black "Chen, Justin"]
[WhiteFideId "331708"]
[BlackFideId "2098199"]
[WhiteElo "2389"]
[BlackElo "2289"]
[Result "0-1"]
[Round "03"]
[TimeControl "180+2"]
[Date "2023.03.14"]
[WhiteClock "0:00:31"]
[BlackClock "0:00:18"]

1. e4 {[%clk 0:03:00]}  c5 {[%clk 0:02:16]} 2. Nc3 {[%clk 0:03:00]}  Nc6 {[%clk 0:02:15]} 3. f4 {[%clk 0:03:00]}  g6 {[%clk 0:02:15]} 4. Nf3 {[%clk 0:03:00]}  Bg7 {[%clk 0:02:15]} 5. g3 {[%clk 0:03:01]}  e6 {[%clk 0:02:12]} 6. d3 {[%clk 0:03:01]}  Nge7 {[%clk 0:02:12]} 7. Bg2 {[%clk 0:03:01]}  O-O {[%clk 0:02:12]} 8. O-O {[%clk 0:03:01]}  Rb8 {[%clk 0:02:10]} 9. Be3 {[%clk 0:02:59]}  Nd4 {[%clk 0:02:09]} 10. e5 {[%clk 0:02:52]}  d5 {[%clk 0:02:04]} 11. Nxd4 {[%clk 0:02:29]}  cxd4 {[%clk 0:02:05]} 12. Bxd4 {[%clk 0:02:29]}  Qa5 {[%clk 0:01:55]} 13. a3 {[%clk 0:02:19]}  Bd7 {[%clk 0:01:51]} 14. g4 {[%clk 0:02:18]}  Nc6 {[%clk 0:01:47]} 15. Bf2 {[%clk 0:02:17]}  g5 {[%clk 0:01:26]} 16. d4 {[%clk 0:01:37]}  gxf4 {[%clk 0:01:11]} 17. Kh1 {[%clk 0:01:33]}  f6 {[%clk 0:01:09]} 18. b4 {[%clk 0:01:19]}  Qb6 {[%clk 0:01:05]} 19. Na4 {[%clk 0:01:13]}  Qc7 {[%clk 0:01:05]} 20. exf6 {[%clk 0:01:12]}  Rxf6 {[%clk 0:01:02]} 21. Nc5 {[%clk 0:01:09]}  Rbf8 {[%clk 0:00:56]} 22. Qf3 {[%clk 0:01:06]}  Be8 {[%clk 0:00:39]} 23. c3 {[%clk 0:01:05]}  b6 {[%clk 0:00:33]} 24. Nd3 {[%clk 0:01:01]}  Bg6 {[%clk 0:00:34]} 25. Rac1 {[%clk 0:00:58]}  Be4 {[%clk 0:00:34]} 26. Qd1 {[%clk 0:00:46]}  f3 {[%clk 0:00:26]} 27. Bh3 {[%clk 0:00:46]}  Rh6 {[%clk 0:00:27]} 28. Bg3 {[%clk 0:00:47]}  f2+ {[%clk 0:00:20]} 29. Bg2 {[%clk 0:00:31]}  Qxg3 {[%clk 0:00:18]} 30. Bxe4 {[%clk 0:00:31]}  Rxh2# {[%clk 0:00:18]} 0-1


[Site "https://www.chess.com"]